[Event "Titled Tuesday Blitz January 03 Early 2023"]
[White "Leschinsky, Gary"]
[Black "Omelja, Artem"]
[WhiteFideId "30951321"]
[BlackFideId "14119846"]
[WhiteElo "1969"]
[BlackElo "2446"]
[Result "0-1"]
[Round "07"]
[TimeControl "180+2"]
[Date "2023.01.03"]
[WhiteClock "0:00:13"]
[BlackClock "0:01:32"]

1. d4 {[%clk 0:03:00]}  Nf6 {[%clk 0:02:55]} 2. c4 {[%clk 0:02:56]}  e6 {[%clk 0:02:55]} 3. Nc3 {[%clk 0:02:55]}  d5 {[%clk 0:02:54]} 4. Nxd5 {[%clk 0:02:53]}  exd5 {[%clk 0:02:55]} 5. Nf3 {[%clk 0:02:45]}  c6 {[%clk 0:02:54]} 6. g3 {[%clk 0:02:43]}  Be7 {[%clk 0:02:54]} 7. Bg2 {[%clk 0:02:43]}  O-O {[%clk 0:02:54]} 8. O-O {[%clk 0:02:44]}  Nbd7 {[%clk 0:02:53]} 9. b3 {[%clk 0:02:43]}  Re8 {[%clk 0:02:52]} 10. e3 {[%clk 0:02:43]}  b6 {[%clk 0:02:51]} 11. Bb2 {[%clk 0:02:43]}  Bb7 {[%clk 0:02:52]} 12. Qc2 {[%clk 0:02:43]}  Rc8 {[%clk 0:02:52]} 13. Rfd1 {[%clk 0:02:41]}  Nf8 {[%clk 0:02:51]} 14. Rac1 {[%clk 0:02:40]}  Ne4 {[%clk 0:02:50]} 15. Ne5 {[%clk 0:02:40]}  Bd6 {[%clk 0:02:47]} 16. Nd3 {[%clk 0:02:19]}  Qe7 {[%clk 0:02:46]} 17. Qe2 {[%clk 0:02:11]}  Ng6 {[%clk 0:02:42]} 18. Qc2 {[%clk 0:01:51]}  Ba3 {[%clk 0:02:41]} 19. c5 {[%clk 0:01:50]}  Bxb2 {[%clk 0:02:40]} 20. Qxb2 {[%clk 0:01:50]}  bxc5 {[%clk 0:02:40]} 21. Nxc5 {[%clk 0:01:51]}  Nxc5 {[%clk 0:02:39]} 22. Rxc5 {[%clk 0:01:51]}  Nf8 {[%clk 0:02:38]} 23. Rdc1 {[%clk 0:01:51]}  Ne6 {[%clk 0:02:37]} 24. R5c3 {[%clk 0:01:49]}  c5 {[%clk 0:02:36]} 25. dxc5 {[%clk 0:01:49]}  Rxc5 {[%clk 0:02:36]} 26. Rxc5 {[%clk 0:01:48]}  Nxc5 {[%clk 0:02:37]} 27. Qa3 {[%clk 0:01:45]}  Ne4 {[%clk 0:02:31]} 28. Qxa7 {[%clk 0:01:14]}  h5 {[%clk 0:02:17]} 29. h4 {[%clk 0:01:12]}  Ra8 {[%clk 0:02:13]} 30. Qb6 {[%clk 0:01:03]}  Ra6 {[%clk 0:02:12]} 31. Qb5 {[%clk 0:00:47]}  Nxf2 {[%clk 0:01:40]} 32. Kxf2 {[%clk 0:00:27]}  Rxa2+ {[%clk 0:01:38]} 33. Kf1 {[%clk 0:00:18]}  Qf6+ {[%clk 0:01:33]} 34. Ke1 {[%clk 0:00:13]}  Qf2+ {[%clk 0:01:32]} 0-1


[Site "https://www.chess.com"]

[Event "Titled Tuesday Blitz January 03 Early 2023"]
[White "Ronka, Erik"]
[Black "Blokhin, Sofia"]
[WhiteFideId "505080"]
[BlackFideId "4508190"]
[WhiteElo "2276"]
[BlackElo "2062"]
[Result "0-1"]
[Round "07"]
[TimeControl "180+2"]
[Date "2023.01.03"]
[WhiteClock "0:00:04"]
[BlackClock "0:00:22"]

1. d4 {[%clk 0:03:00]}  Nf6 {[%clk 0:02:59]} 2. Nc3 {[%clk 0:02:59]}  g6 {[%clk 0:02:58]} 3. e4 {[%clk 0:02:58]}  d6 {[%clk 0:02:58]} 4. f4 {[%clk 0:02:58]}  Bg7 {[%clk 0:02:58]} 5. a3 {[%clk 0:02:58]}  O-O {[%clk 0:02:58]} 6. Nf3 {[%clk 0:02:58]}  Nc6 {[%clk 0:02:52]} 7. Be3 {[%clk 0:02:52]}  Ng4 {[%clk 0:02:45]} 8. Bg1 {[%clk 0:02:50]}  e5 {[%clk 0:02:36]} 9. dxe5 {[%clk 0:02:50]}  dxe5 {[%clk 0:02:33]} 10. Qxd8 {[%clk 0:02:50]}  Rxd8 {[%clk 0:02:31]} 11. h3 {[%clk 0:02:51]}  Nf6 {[%clk 0:02:23]} 12. fxe5 {[%clk 0:02:46]}  Nh5 {[%clk 0:02:21]} 13. Nd5 {[%clk 0:02:44]}  Ng3 {[%clk 0:02:15]} 14. Rh2 {[%clk 0:02:40]}  Nxf1 {[%clk 0:02:10]} 15. Kxf1 {[%clk 0:02:41]}  Nxe5 {[%clk 0:02:05]} 16. Nxc7 {[%clk 0:02:12]}  Rb8 {[%clk 0:01:31]} 17. Bxa7 {[%clk 0:02:10]}  Nxf3 {[%clk 0:01:27]} 18. gxf3 {[%clk 0:01:56]}  Be5 {[%clk 0:01:26]} 19. Bxb8 {[%clk 0:01:08]}  Bxh2 {[%clk 0:01:26]} 20. Kg2 {[%clk 0:00:31]}  Rd2+ {[%clk 0:01:24]} 21. Kh1 {[%clk 0:00:32]}  Rxc2 {[%clk 0:01:13]} 22. Rd1 {[%clk 0:00:22]}  Bxc7 {[%clk 0:01:09]} 23. Bxc7 {[%clk 0:00:17]}  Rxc7 {[%clk 0:01:10]} 24. Kg2 {[%clk 0:00:16]}  Rc2+ {[%clk 0:01:09]} 25. Kg3 {[%clk 0:00:17]}  Kg7 {[%clk 0:01:08]} 26. b4 {[%clk 0:00:16]}  Be6 {[%clk 0:01:06]} 27. Rd6 {[%clk 0:00:15]}  Ra2 {[%clk 0:01:03]} 28. Rb6 {[%clk 0:00:16]}  Bc8 {[%clk 0:01:00]} 29. h4 {[%clk 0:00:12]}  Rxa3 {[%clk 0:01:00]} 30. Kf4 {[%clk 0:00:13]}  Rb3 {[%clk 0:00:58]} 31. h5 {[%clk 0:00:10]}  h6 {[%clk 0:00:56]} 32. b5 {[%clk 0:00:06]}  gxh5 {[%clk 0:00:54]} 33. Kg3 {[%clk 0:00:05]}  Bg4 {[%clk 0:00:52]} 34. Rxb7 {[%clk 0:00:04]}  Rxf3+ {[%clk 0:00:52]} 35. Kg2 {[%clk 0:00:04]}  Rb3 {[%clk 0:00:51]} 36. Rb8 {[%clk 0:00:04]}  Bf3+ {[%clk 0:00:50]} 37. Kh2 {[%clk 0:00:04]}  Bxe4 {[%clk 0:00:51]} 38. b6 {[%clk 0:00:05]}  h4 {[%clk 0:00:49]} 39. Re8 {[%clk 0:00:04]}  Bc6 {[%clk 0:00:42]} 40. Rc8 {[%clk 0:00:04]}  Rxb6 {[%clk 0:00:42]} 41. Rc7 {[%clk 0:00:05]}  Kf6 {[%clk 0:00:37]} 42. Kh3 {[%clk 0:00:05]}  Kg5 {[%clk 0:00:31]} 43. Re7 {[%clk 0:00:06]}  Rb3+ {[%clk 0:00:31]} 44. Kh2 {[%clk 0:00:05]}  Rb2+ {[%clk 0:00:30]} 45. Kg1 {[%clk 0:00:04]}  h3 {[%clk 0:00:26]} 46. Re2 {[%clk 0:00:01]}  Rxe2 {[%clk 0:00:24]} 47. Kf1 {[%clk 0:00:02]}  Rb2 {[%clk 0:00:22]} 48. Kg1 {[%clk 0:00:03]}  h2+ {[%clk 0:00:21]} 49. Kf1 {[%clk 0:00:04]}  h1=Q# {[%clk 0:00:22]} 0-1


[Site "https://www.chess.com"]

[Event "Titled Tuesday Blitz January 03 Early 2023"]
[White "De La Colina, Nicolas"]
[Black "Degenbaev, Aziz"]
[WhiteFideId "30946921"]
[BlackFideId "13802640"]
[WhiteElo "2244"]
[BlackElo "2203"]
[Result "0-1"]
[Round "07"]
[TimeControl "180+2"]
[Date "2023.01.03"]
[WhiteClock "0:00:20"]
[BlackClock "0:00:40"]

1. e4 {[%clk 0:02:54]}  c5 {[%clk 0:02:59]} 2. Nf3 {[%clk 0:02:54]}  d6 {[%clk 0:02:59]} 3. Bb5+ {[%clk 0:02:51]}  Nd7 {[%clk 0:02:58]} 4. d4 {[%clk 0:02:35]}  cxd4 {[%clk 0:02:55]} 5. Qxd4 {[%clk 0:02:36]}  Nf6 {[%clk 0:02:52]} 6. c4 {[%clk 0:02:27]}  g6 {[%clk 0:02:51]} 7. e5 {[%clk 0:02:22]}  dxe5 {[%clk 0:02:49]} 8. Nxe5 {[%clk 0:02:23]}  Bg7 {[%clk 0:02:49]} 9. Nxd7 {[%clk 0:02:16]}  Bxd7 {[%clk 0:02:49]} 10. Bxd7+ {[%clk 0:02:14]}  Qxd7 {[%clk 0:02:49]} 11. Qh4 {[%clk 0:02:10]}  Qe6+ {[%clk 0:02:42]} 12. Kf1 {[%clk 0:02:05]}  Rc8 {[%clk 0:02:41]} 13. Nd2 {[%clk 0:02:00]}  Ng4 {[%clk 0:02:34]} 14. h3 {[%clk 0:01:45]}  Ne5 {[%clk 0:02:34]} 15. Qe4 {[%clk 0:01:33]}  Nxc4 {[%clk 0:02:24]} 16. Qxe6 {[%clk 0:01:28]}  Nxd2+ {[%clk 0:02:23]} 17. Bxd2 {[%clk 0:01:29]}  fxe6 {[%clk 0:02:24]} 18. Ke2 {[%clk 0:01:30]}  b6 {[%clk 0:02:19]} 19. Rab1 {[%clk 0:01:25]}  Kf7 {[%clk 0:02:15]} 20. Rhc1 {[%clk 0:01:23]}  Rxc1 {[%clk 0:02:09]} 21. Bxc1 {[%clk 0:01:24]}  Rc8 {[%clk 0:02:09]} 22. Kd3 {[%clk 0:01:22]}  Rd8+ {[%clk 0:02:04]} 23. Ke2 {[%clk 0:01:22]}  Rc8 {[%clk 0:02:01]} 24. Kd3 {[%clk 0:01:22]}  e5 {[%clk 0:01:58]} 25. Be3 {[%clk 0:01:20]}  Ke6 {[%clk 0:01:56]} 26. Rd1 {[%clk 0:01:18]}  e4+ {[%clk 0:01:44]} 27. Kxe4 {[%clk 0:01:12]}  Bxb2 {[%clk 0:01:45]} 28. Rb1 {[%clk 0:01:09]}  Bf6 {[%clk 0:01:40]} 29. g3 {[%clk 0:01:08]}  Rc2 {[%clk 0:01:39]} 30. a3 {[%clk 0:01:04]}  Rc3 {[%clk 0:01:39]} 31. Bc1 {[%clk 0:00:50]}  Kd7 {[%clk 0:01:08]} 32. h4 {[%clk 0:00:46]}  Kc6 {[%clk 0:01:05]} 33. Bg5 {[%clk 0:00:28]}  Rxa3 {[%clk 0:01:00]} 34. Rc1+ {[%clk 0:00:28]}  Kd7 {[%clk 0:00:54]} 35. Rd1+ {[%clk 0:00:21]}  Ke6 {[%clk 0:00:54]} 36. Rc1 {[%clk 0:00:22]}  Rc3 {[%clk 0:00:50]} 37. Rd1 {[%clk 0:00:20]}  Bxg5 {[%clk 0:00:49]} 38. hxg5 {[%clk 0:00:21]}  Rc4+ {[%clk 0:00:43]} 39. Kf3 {[%clk 0:00:19]}  a5 {[%clk 0:00:42]} 40. Rh1 {[%clk 0:00:20]}  a4 {[%clk 0:00:40]} 0-1


[Site "https://www.chess.com"]

[Event "Titled Tuesday Blitz January 03 Early 2023"]
[White "djokovic74"]
[Black "Zherebtsova, Alexandra"]
[BlackFideId "24129518"]
[WhiteElo "2575"]
[BlackElo "2155"]
[Result "1-0"]
[Round "07"]
[TimeControl "180+2"]
[Date "2023.01.03"]
[WhiteClock "0:00:23"]
[BlackClock "0:00:16"]

1. e4 {[%clk 0:03:00]}  e5 {[%clk 0:02:58]} 2. Nf3 {[%clk 0:03:01]}  Nc6 {[%clk 0:02:59]} 3. Bb5 {[%clk 0:03:01]}  a6 {[%clk 0:02:59]} 4. Ba4 {[%clk 0:03:02]}  Nf6 {[%clk 0:02:59]} 5. O-O {[%clk 0:03:02]}  Be7 {[%clk 0:02:59]} 6. d3 {[%clk 0:03:02]}  b5 {[%clk 0:02:55]} 7. Bb3 {[%clk 0:03:02]}  d6 {[%clk 0:02:55]} 8. a3 {[%clk 0:03:02]}  O-O {[%clk 0:02:55]} 9. Nc3 {[%clk 0:03:03]}  Bg4 {[%clk 0:02:51]} 10. Be3 {[%clk 0:03:03]}  Nd4 {[%clk 0:02:46]} 11. Bxd4 {[%clk 0:03:01]}  exd4 {[%clk 0:02:47]} 12. Nd5 {[%clk 0:03:01]}  c6 {[%clk 0:02:37]} 13. h3 {[%clk 0:02:54]}  Bxf3 {[%clk 0:02:22]} 14. Nxf6+ {[%clk 0:02:54]}  Bxf6 {[%clk 0:02:22]} 15. Qxf3 {[%clk 0:02:55]}  Qe7 {[%clk 0:02:19]} 16. Rae1 {[%clk 0:02:54]}  Kh8 {[%clk 0:02:18]} 17. Qe2 {[%clk 0:02:44]}  Rfe8 {[%clk 0:02:06]} 18. f4 {[%clk 0:02:44]}  g6 {[%clk 0:02:03]} 19. Qf3 {[%clk 0:02:38]}  Bg7 {[%clk 0:02:00]} 20. Qg3 {[%clk 0:02:35]}  Qd7 {[%clk 0:01:54]} 21. Qf3 {[%clk 0:02:32]}  Rac8 {[%clk 0:01:44]} 22. Rc1 {[%clk 0:02:21]}  f5 {[%clk 0:01:39]} 23. exf5 {[%clk 0:02:15]}  Qxf5 {[%clk 0:01:38]} 24. Rce1 {[%clk 0:02:14]}  d5 {[%clk 0:01:26]} 25. a4 {[%clk 0:02:13]}  Qf6 {[%clk 0:01:19]} 26. axb5 {[%clk 0:02:09]}  axb5 {[%clk 0:01:19]} 27. Qf2 {[%clk 0:02:10]}  Re7 {[%clk 0:01:08]} 28. Rxe7 {[%clk 0:02:08]}  Qxe7 {[%clk 0:01:08]} 29. Re1 {[%clk 0:02:07]}  Qf7 {[%clk 0:01:08]} 30. g3 {[%clk 0:01:58]}  Re8 {[%clk 0:01:08]} 31. Kg2 {[%clk 0:01:56]}  Rxe1 {[%clk 0:01:03]} 32. Qxe1 {[%clk 0:01:56]}  h6 {[%clk 0:01:04]} 33. c3 {[%clk 0:01:54]}  Qf5 {[%clk 0:01:03]} 34. Bc2 {[%clk 0:01:52]}  Qd7 {[%clk 0:00:49]} 35. cxd4 {[%clk 0:01:23]}  Bxd4 {[%clk 0:00:48]} 36. b3 {[%clk 0:01:05]}  Kg7 {[%clk 0:00:48]} 37. Bd1 {[%clk 0:00:59]}  Kf7 {[%clk 0:00:42]} 38. Bg4 {[%clk 0:00:55]}  Qe7 {[%clk 0:00:41]} 39. Qc1 {[%clk 0:00:55]}  c5 {[%clk 0:00:22]} 40. Bf3 {[%clk 0:00:51]}  Qe3 {[%clk 0:00:12]} 41. Qxe3 {[%clk 0:00:46]}  Bxe3 {[%clk 0:00:11]} 42. Bxd5+ {[%clk 0:00:47]}  Kg7 {[%clk 0:00:10]} 43. Bc6 {[%clk 0:00:48]}  b4 {[%clk 0:00:10]} 44. Kf3 {[%clk 0:00:48]}  Bd4 {[%clk 0:00:10]} 45. h4 {[%clk 0:00:45]}  Kf6 {[%clk 0:00:10]} 46. Kg4 {[%clk 0:00:42]}  Kg7 {[%clk 0:00:09]} 47. Be8 {[%clk 0:00:39]}  Bf2 {[%clk 0:00:08]} 48. Kf3 {[%clk 0:00:37]}  Bd4 {[%clk 0:00:08]} 49. Bc6 {[%clk 0:00:24]}  g5 {[%clk 0:00:08]} 50. hxg5 {[%clk 0:00:23]}  hxg5 {[%clk 0:00:08]} 51. fxg5 {[%clk 0:00:23]}  Bg1 {[%clk 0:00:08]} 52. Kg4 {[%clk 0:00:21]}  Bd4 {[%clk 0:00:09]} 53. Kf5 {[%clk 0:00:21]}  Bg1 {[%clk 0:00:09]} 54. g4 {[%clk 0:00:21]}  Bd4 {[%clk 0:00:10]} 55. Bd5 {[%clk 0:00:21]}  Bg1 {[%clk 0:00:11]} 56. g6 {[%clk 0:00:22]}  Bd4 {[%clk 0:00:11]} 57. Bf7 {[%clk 0:00:22]}  Bg1 {[%clk 0:00:12]} 58. Ke4 {[%clk 0:00:22]}  Bd4 {[%clk 0:00:13]} 59. Kf3 {[%clk 0:00:22]}  Bg1 {[%clk 0:00:14]} 60. Kg3 {[%clk 0:00:22]}  Bd4 {[%clk 0:00:15]} 61. Kg2 {[%clk 0:00:23]}  Bg1 {[%clk 0:00:16]} 62. Kxg1 {[%clk 0:00:23]} 1-0


[Site "https://www.chess.com"]

[Event "Titled Tuesday Blitz January 03 Early 2023"]
[White "Defend1r"]
[Black "Shubenkova, Veronika"]
[BlackFideId "44124040"]
[WhiteElo "2539"]
[BlackElo "1960"]
[Result "0-1"]
[Round "07"]
[TimeControl "180+2"]
[Date "2023.01.03"]
[WhiteClock "0:02:01"]
[BlackClock "0:01:35"]

1. e4 {[%clk 0:03:00]}  c6 {[%clk 0:02:58]} 2. d4 {[%clk 0:03:00]}  d5 {[%clk 0:02:59]} 3. e5 {[%clk 0:03:01]}  Bf5 {[%clk 0:02:58]} 4. h4 {[%clk 0:03:01]}  h5 {[%clk 0:02:58]} 5. Bd3 {[%clk 0:03:02]}  Bxd3 {[%clk 0:02:58]} 6. Qxd3 {[%clk 0:03:03]}  e6 {[%clk 0:02:58]} 7. Bg5 {[%clk 0:03:03]}  Be7 {[%clk 0:02:59]} 8. Nf3 {[%clk 0:03:03]}  a6 {[%clk 0:02:56]} 9. Nbd2 {[%clk 0:03:02]}  g6 {[%clk 0:02:56]} 10. O-O {[%clk 0:03:00]}  Nh6 {[%clk 0:02:55]} 11. Bxh6 {[%clk 0:02:59]}  Rxh6 {[%clk 0:02:55]} 12. g3 {[%clk 0:03:00]}  Kf8 {[%clk 0:02:54]} 13. c4 {[%clk 0:02:49]}  Kg7 {[%clk 0:02:54]} 14. c5 {[%clk 0:02:50]}  Nd7 {[%clk 0:02:53]} 15. b4 {[%clk 0:02:49]}  g5 {[%clk 0:02:52]} 16. hxg5 {[%clk 0:02:48]}  Bxg5 {[%clk 0:02:52]} 17. Nxg5 {[%clk 0:02:49]}  Qxg5 {[%clk 0:02:52]} 18. Nf3 {[%clk 0:02:46]}  Qe7 {[%clk 0:02:52]} 19. Nh4 {[%clk 0:02:45]}  Rg8 {[%clk 0:02:51]} 20. Kh2 {[%clk 0:02:44]}  Kf8 {[%clk 0:02:39]} 21. f4 {[%clk 0:02:44]}  Rg4 {[%clk 0:02:36]} 22. f5 {[%clk 0:02:43]}  Qg5 {[%clk 0:02:27]} 23. fxe6 {[%clk 0:02:38]}  Rxe6 {[%clk 0:02:27]} 24. Qh7 {[%clk 0:02:36]}  Rxh4+ {[%clk 0:02:07]} 25. Kg2 {[%clk 0:02:32]}  Qd2+ {[%clk 0:01:47]} 26. Rf2 {[%clk 0:02:32]}  Rh2+ {[%clk 0:01:47]} 27. Kxh2 {[%clk 0:02:32]}  Qxf2+ {[%clk 0:01:47]} 28. Kh3 {[%clk 0:02:27]}  Rg6 {[%clk 0:01:45]} 29. Qxg6 {[%clk 0:02:08]}  fxg6 {[%clk 0:01:45]} 30. Rh1 {[%clk 0:02:01]}  g5 {[%clk 0:01:41]} 31. Rh2 {[%clk 0:02:00]}  g4+ {[%clk 0:01:41]} 32. Kh4 {[%clk 0:02:00]}  Qxh2+ {[%clk 0:01:41]} 33. Kg5 {[%clk 0:02:01]}  Qxg3 {[%clk 0:01:41]} 34. Kf5 {[%clk 0:02:02]}  Qf3+ {[%clk 0:01:40]} 35. Ke6 {[%clk 0:02:03]}  Qf7+ {[%clk 0:01:40]} 36. Kd6 {[%clk 0:02:03]}  Qe7+ {[%clk 0:01:40]} 37. Kc7 {[%clk 0:02:04]}  Nxc5+ {[%clk 0:01:40]} 38. Kb8 {[%clk 0:02:05]}  Nd3 {[%clk 0:01:38]} 39. b5 {[%clk 0:02:05]}  axb5 {[%clk 0:01:38]} 40. a3 {[%clk 0:02:04]}  b6 {[%clk 0:01:38]} 41. Kc8 {[%clk 0:02:04]}  Nf4 {[%clk 0:01:38]} 42. Kb8 {[%clk 0:02:03]}  Ne6 {[%clk 0:01:38]} 43. a4 {[%clk 0:02:03]}  bxa4 {[%clk 0:01:37]} 44. Ka8 {[%clk 0:02:01]}  Nxd4 {[%clk 0:01:36]} 45. e6 {[%clk 0:02:00]}  Nb5 {[%clk 0:01:35]} 46. Kb8 {[%clk 0:02:01]}  Qc7+ {[%clk 0:01:35]} 0-1


[Site "https://www.chess.com"]

[Event "Titled Tuesday Blitz January 03 Early 2023"]
[White "Sreyas Payyappat"]
[Black "Turzo, Attila"]
[WhiteFideId "46674969"]
[BlackFideId "704954"]
[WhiteElo "2076"]
[BlackElo "2279"]
[Result "0-1"]
[Round "07"]
[TimeControl "180+2"]
[Date "2023.01.03"]
[WhiteClock "0:01:17"]
[BlackClock "0:00:36"]

1. e4 {[%clk 0:03:00]}  c5 {[%clk 0:02:57]} 2. Nf3 {[%clk 0:03:00]}  d6 {[%clk 0:02:57]} 3. d4 {[%clk 0:03:01]}  cxd4 {[%clk 0:02:58]} 4. Nxd4 {[%clk 0:03:01]}  Nf6 {[%clk 0:02:58]} 5. Nc3 {[%clk 0:03:00]}  a6 {[%clk 0:02:59]} 6. h4 {[%clk 0:02:59]}  e5 {[%clk 0:02:51]} 7. Nb3 {[%clk 0:02:58]}  Be6 {[%clk 0:02:48]} 8. f4 {[%clk 0:02:58]}  exf4 {[%clk 0:02:45]} 9. Bxf4 {[%clk 0:02:58]}  Nc6 {[%clk 0:02:45]} 10. Qd2 {[%clk 0:02:56]}  Be7 {[%clk 0:02:33]} 11. O-O-O {[%clk 0:02:55]}  O-O {[%clk 0:02:34]} 12. g3 {[%clk 0:02:54]}  Ne5 {[%clk 0:02:27]} 13. Be2 {[%clk 0:02:41]}  Qc7 {[%clk 0:02:24]} 14. Rhg1 {[%clk 0:02:40]}  Rfd8 {[%clk 0:02:20]} 15. Qe3 {[%clk 0:02:32]}  b5 {[%clk 0:01:57]} 16. g4 {[%clk 0:02:25]}  b4 {[%clk 0:01:52]} 17. Nd5 {[%clk 0:02:21]}  Bxd5 {[%clk 0:01:35]} 18. exd5 {[%clk 0:02:22]}  Bf8 {[%clk 0:01:35]} 19. g5 {[%clk 0:02:16]}  Nfd7 {[%clk 0:01:35]} 20. Nd4 {[%clk 0:02:11]}  Re8 {[%clk 0:01:33]} 21. h5 {[%clk 0:02:04]}  Nc5 {[%clk 0:01:17]} 22. Bxe5 {[%clk 0:01:59]}  Rxe5 {[%clk 0:01:15]} 23. Qf3 {[%clk 0:01:58]}  g6 {[%clk 0:01:09]} 24. h6 {[%clk 0:01:54]}  Ne4 {[%clk 0:00:54]} 25. Qf6 {[%clk 0:01:28]}  Nxf6 {[%clk 0:00:53]} 26. gxf6 {[%clk 0:01:29]}  Bxh6+ {[%clk 0:00:48]} 27. Kb1 {[%clk 0:01:28]}  Be3 {[%clk 0:00:48]} 28. Nc6 {[%clk 0:01:20]}  Bxg1 {[%clk 0:00:45]} 29. Nxe5 {[%clk 0:01:20]}  dxe5 {[%clk 0:00:41]} 30. Rxg1 {[%clk 0:01:20]}  Qd6 {[%clk 0:00:39]} 31. Rd1 {[%clk 0:01:19]}  Qxf6 {[%clk 0:00:36]} 32. d6 {[%clk 0:01:18]}  Rd8 {[%clk 0:00:36]} 33. d7 {[%clk 0:01:17]}  Qe7 {[%clk 0:00:36]} 0-1


[Site "https://www.chess.com"]

[Event "Titled Tuesday Blitz January 03 Early 2023"]
[White "Babikov, Ivan"]
[Black "Tomaszewski, Kacper"]
[WhiteFideId "4161106"]
[BlackFideId "1127373"]
[WhiteElo "2239"]
[BlackElo "2313"]
[Result "1-0"]
[Round "07"]
[TimeControl "180+2"]
[Date "2023.01.03"]
[WhiteClock "0:00:10"]
[BlackClock "0:00:05"]

1. d4 {[%clk 0:03:00]}  d5 {[%clk 0:02:57]} 2. Nf3 {[%clk 0:02:59]}  Nf6 {[%clk 0:02:56]} 3. Bg5 {[%clk 0:03:00]}  Nbd7 {[%clk 0:02:52]} 4. e3 {[%clk 0:02:59]}  c6 {[%clk 0:02:50]} 5. c3 {[%clk 0:03:00]}  e6 {[%clk 0:02:50]} 6. Bd3 {[%clk 0:02:59]}  h6 {[%clk 0:02:51]} 7. Bh4 {[%clk 0:02:59]}  Bd6 {[%clk 0:02:50]} 8. O-O {[%clk 0:02:58]}  O-O {[%clk 0:02:49]} 9. Nbd2 {[%clk 0:02:58]}  Qc7 {[%clk 0:02:45]} 10. e4 {[%clk 0:02:54]}  dxe4 {[%clk 0:02:45]} 11. Nxe4 {[%clk 0:02:54]}  Nxe4 {[%clk 0:02:45]} 12. Bxe4 {[%clk 0:02:54]}  e5 {[%clk 0:02:46]} 13. dxe5 {[%clk 0:02:52]}  Nxe5 {[%clk 0:02:45]} 14. Nxe5 {[%clk 0:02:52]}  Bxe5 {[%clk 0:02:46]} 15. Bg3 {[%clk 0:02:52]}  Bxg3 {[%clk 0:02:46]} 16. hxg3 {[%clk 0:02:52]}  Be6 {[%clk 0:02:46]} 17. Qc2 {[%clk 0:02:48]}  Rad8 {[%clk 0:02:44]} 18. b3 {[%clk 0:02:31]}  Rd7 {[%clk 0:02:40]} 19. c4 {[%clk 0:02:30]}  Rfd8 {[%clk 0:02:40]} 20. Rfd1 {[%clk 0:02:31]}  Qe5 {[%clk 0:02:28]} 21. Bf3 {[%clk 0:02:25]}  Kf8 {[%clk 0:02:24]} 22. Rxd7 {[%clk 0:02:21]}  Rxd7 {[%clk 0:02:24]} 23. Rd1 {[%clk 0:02:22]}  Rxd1+ {[%clk 0:02:21]} 24. Qxd1 {[%clk 0:02:22]}  Ke7 {[%clk 0:02:21]} 25. Qd2 {[%clk 0:02:19]}  Qd6 {[%clk 0:02:15]} 26. Qa5 {[%clk 0:02:15]}  Qd4 {[%clk 0:01:53]} 27. Qc7+ {[%clk 0:02:14]}  Qd7 {[%clk 0:01:53]} 28. Qa5 {[%clk 0:02:14]}  b6 {[%clk 0:01:48]} 29. Qe5 {[%clk 0:01:50]}  g6 {[%clk 0:01:36]} 30. Be4 {[%clk 0:01:32]}  Qd1+ {[%clk 0:01:29]} 31. Kh2 {[%clk 0:01:31]}  Qd2 {[%clk 0:01:18]} 32. Kg1 {[%clk 0:01:25]}  Qe1+ {[%clk 0:01:17]} 33. Kh2 {[%clk 0:01:24]}  Qxf2 {[%clk 0:01:15]} 34. Bxc6 {[%clk 0:01:23]}  Qc5 {[%clk 0:01:07]} 35. Bd5 {[%clk 0:01:17]}  Qd6 {[%clk 0:01:07]} 36. Qe4 {[%clk 0:01:07]}  h5 {[%clk 0:01:06]} 37. Qh4+ {[%clk 0:01:06]}  Kd7 {[%clk 0:01:02]} 38. Bxe6+ {[%clk 0:01:02]}  Qxe6 {[%clk 0:01:02]} 39. Qd4+ {[%clk 0:01:02]}  Ke7 {[%clk 0:01:02]} 40. Qf4 {[%clk 0:01:00]}  Qd6 {[%clk 0:00:59]} 41. Qe4+ {[%clk 0:01:00]}  Qe6 {[%clk 0:00:52]} 42. Qb7+ {[%clk 0:00:59]}  Qd7 {[%clk 0:00:53]} 43. Qe4+ {[%clk 0:01:00]}  Kf6 {[%clk 0:00:52]} 44. Qf4+ {[%clk 0:00:58]}  Kg7 {[%clk 0:00:51]} 45. Qe5+ {[%clk 0:00:58]}  Kh7 {[%clk 0:00:50]} 46. Qf6 {[%clk 0:00:58]}  Qc7 {[%clk 0:00:44]} 47. Qf3 {[%clk 0:00:44]}  Kg7 {[%clk 0:00:44]} 48. Qc3+ {[%clk 0:00:44]}  Kg8 {[%clk 0:00:44]} 49. Qe3 {[%clk 0:00:42]}  Kf8 {[%clk 0:00:43]} 50. Qd4 {[%clk 0:00:41]}  Ke7 {[%clk 0:00:41]} 51. Qe4+ {[%clk 0:00:41]}  Kd7 {[%clk 0:00:39]} 52. Qd5+ {[%clk 0:00:41]}  Kc8 {[%clk 0:00:37]} 53. Qa8+ {[%clk 0:00:40]}  Kd7 {[%clk 0:00:37]} 54. Qd5+ {[%clk 0:00:41]}  Ke7 {[%clk 0:00:38]} 55. Qe4+ {[%clk 0:00:41]}  Kf6 {[%clk 0:00:37]} 56. Qd4+ {[%clk 0:00:40]}  Qe5 {[%clk 0:00:38]} 57. Qd8+ {[%clk 0:00:40]}  Qe7 {[%clk 0:00:33]} 58. Qd4+ {[%clk 0:00:33]}  Ke6 {[%clk 0:00:30]} 59. Qe4+ {[%clk 0:00:33]}  Kd7 {[%clk 0:00:29]} 60. Qd5+ {[%clk 0:00:32]}  Kc7 {[%clk 0:00:27]} 61. Qa8 {[%clk 0:00:33]}  a5 {[%clk 0:00:19]} 62. Qa7+ {[%clk 0:00:32]}  Kd6 {[%clk 0:00:19]} 63. Qxb6+ {[%clk 0:00:33]}  Ke5 {[%clk 0:00:16]} 64. Qxa5+ {[%clk 0:00:32]}  Kd4 {[%clk 0:00:15]} 65. Qd2+ {[%clk 0:00:31]}  Kc5 {[%clk 0:00:14]} 66. Qa5+ {[%clk 0:00:26]}  Kd4 {[%clk 0:00:14]} 67. Qd5+ {[%clk 0:00:25]}  Kc3 {[%clk 0:00:14]} 68. c5 {[%clk 0:00:26]}  Kb2 {[%clk 0:00:10]} 69. c6 {[%clk 0:00:24]}  h4 {[%clk 0:00:11]} 70. Qd7 {[%clk 0:00:14]}  hxg3+ {[%clk 0:00:10]} 71. Kxg3 {[%clk 0:00:13]}  Qe3+ {[%clk 0:00:11]} 72. Kh2 {[%clk 0:00:12]}  Qf4+ {[%clk 0:00:08]} 73. Kg1 {[%clk 0:00:12]}  Qe3+ {[%clk 0:00:08]} 74. Kf1 {[%clk 0:00:12]}  Qf4+ {[%clk 0:00:08]} 75. Ke2 {[%clk 0:00:10]}  Qe4+ {[%clk 0:00:08]} 76. Kd2 {[%clk 0:00:10]}  Qxg2+ {[%clk 0:00:08]} 77. Kd3 {[%clk 0:00:10]}  Qf1+ {[%clk 0:00:08]} 78. Kd4 {[%clk 0:00:09]}  Qf2+ {[%clk 0:00:08]} 79. Kc4 {[%clk 0:00:09]}  Qf1+ {[%clk 0:00:07]} 80. Kc5 {[%clk 0:00:09]}  Qf2+ {[%clk 0:00:07]} 81. Qd4+ {[%clk 0:00:09]}  Qxd4+ {[%clk 0:00:05]} 82. Kxd4 {[%clk 0:00:10]} 1-0


[Site "https://www.chess.com"]